[Event "The Kvibergspelen 2023"]
[Site "Kviberg Park Hotel & Conference, Krutvagen 2, Gothenburg, Sweden"]
[Date "2023.09.15"]
[Round "4.8"]
[White "Ollen, Martin"]
[Black "Ramsdal, Jens Albert"]
[Result "0-1"]
[TimeControl "15 minutes + 5 seconds per move from move one (Round 1 - 4) / 90 minutes + 30 seconds per move from move one (Round 5 - 8)"]
[BlackTitle "FM"]
[WhiteFideId "1718983"]
[BlackFideId "1429221"]
[WhiteElo "2143"]
[BlackElo "2391"]

1. e4 {[%clk 00:15:07]} {[%emt 00:00:03]} c5 {[%clk 00:15:08]} {[%emt
00:00:02]} 2. Nf3 {[%clk 00:15:09]} {[%emt 00:00:03]} d6 {[%clk 00:15:11]} 3.
d4 {[%clk 00:15:11]} {[%emt 00:00:04]} cxd4 {[%clk 00:15:15]} {[%emt 00:00:01]}
4. Nxd4 {[%clk 00:15:14]} {[%emt 00:00:03]} Nf6 {[%clk 00:15:18]} 5. Nc3 {[%clk
00:15:16]} {[%emt 00:00:02]} Nc6 {[%clk 00:15:22]} {[%emt 00:00:02]} 6. Bg5
{[%clk 00:15:18]} {[%emt 00:00:03]} e6 {[%clk 00:15:25]} {[%emt 00:00:03]} 7.
f3 {[%clk 00:15:14]} {[%emt 00:00:08]} a6 {[%clk 00:15:11]} {[%emt 00:00:19]} 8.
Qd2 {[%clk 00:15:16]} {[%emt 00:00:03]} Bd7 {[%clk 00:14:50]} {[%emt 00:00:27]}
9. O-O-O {[%clk 00:15:11]} {[%emt 00:00:09]} Nxd4 {[%clk 00:14:09]} {[%emt
00:00:46]} 10. Qxd4 {[%clk 00:15:11]} {[%emt 00:00:05]} Be7 {[%clk 00:14:13]}
{[%emt 00:00:02]} 11. g4 {[%clk 00:13:46]} {[%emt 00:01:29]} Qc7 {[%clk
00:13:55]} {[%emt 00:00:23]} 12. Bxf6 {[%clk 00:13:07]} {[%emt 00:00:44]} Bxf6
{[%clk 00:13:55]} {[%emt 00:00:06]} 13. Qxd6 {[%clk 00:13:07]} {[%emt
00:00:05]} Qxd6 {[%clk 00:13:58]} {[%emt 00:00:01]} 14. Rxd6 {[%clk 00:13:10]}
{[%emt 00:00:03]} Bxc3 {[%clk 00:13:42]} {[%emt 00:00:20]} 15. bxc3 {[%clk
00:13:12]} {[%emt 00:00:03]} Ke7 {[%clk 00:13:36]} {[%emt 00:00:11]} 16. Rb6
{[%clk 00:11:42]} {[%emt 00:01:36]} Bc6 {[%clk 00:13:38]} {[%emt 00:00:02]} 17.
Bc4 {[%clk 00:11:23]} {[%emt 00:00:24]} Rac8 {[%clk 00:13:26]} {[%emt
00:00:18]} 18. Rd1 {[%clk 00:11:13]} {[%emt 00:00:15]} Rc7 {[%clk 00:13:06]}
{[%emt 00:00:25]} 19. Kb2 {[%clk 00:09:18]} {[%emt 00:02:01]} h5 {[%clk
00:12:43]} {[%emt 00:00:27]} 20. g5 {[%clk 00:08:10]} {[%emt 00:01:14]} h4
{[%clk 00:12:09]} {[%emt 00:00:38]} 21. Bd3 {[%clk 00:05:04]} {[%emt 00:03:11]}
Rd7 {[%clk 00:07:28]} {[%emt 00:04:46]} 22. Rg1 {[%clk 00:05:00]} {[%emt
00:00:10]} Kd6 {[%clk 00:07:02]} {[%emt 00:00:30]} 23. f4 {[%clk 00:04:55]}
{[%emt 00:00:10]} Kc5 {[%clk 00:05:40]} {[%emt 00:01:27]} 24. Rb4 {[%clk
00:03:45]} {[%emt 00:01:15]} b5 {[%clk 00:05:44]} {[%emt 00:00:01]} 25. Ka3
{[%clk 00:03:10]} {[%emt 00:00:40]} a5 {[%clk 00:05:31]} {[%emt 00:00:18]} 26.
Rbb1 {[%clk 00:03:10]} {[%emt 00:00:06]} Ra7 {[%clk 00:05:02]} {[%emt
00:00:33]} 27. Kb2 {[%clk 00:03:12]} {[%emt 00:00:03]} b4 {[%clk 00:04:54]}
{[%emt 00:00:13]} 28. a3 {[%clk 00:02:22]} {[%emt 00:00:56]} Rb8 {[%clk
00:04:18]} {[%emt 00:00:41]} 29. cxb4+ {[%clk 00:02:19]} {[%emt 00:00:08]} axb4
{[%clk 00:04:21]} {[%emt 00:00:02]} 30. axb4+ {[%clk 00:02:19]} {[%emt
00:00:04]} Rxb4+ {[%clk 00:04:21]} {[%emt 00:00:05]} 31. Kc3 {[%clk 00:02:15]}
{[%emt 00:00:10]} Ra3+ {[%clk 00:04:16]} {[%emt 00:00:09]} 32. Kd2 {[%clk
00:02:01]} {[%emt 00:00:20]} Rd4 {[%clk 00:03:54]} {[%emt 00:00:26]} 33. Rge1
{[%clk 00:01:33]} {[%emt 00:00:33]} Rd8 {[%clk 00:02:32]} {[%emt 00:01:27]} 34.
Re3 {[%clk 00:01:27]} {[%emt 00:00:12]} Ra5 {[%clk 00:02:08]} {[%emt 00:00:28]}
35. f5 {[%clk 00:00:51]} {[%emt 00:00:41]} Kd4 {[%clk 00:01:36]} {[%emt
00:00:37]} 36. g6 {[%clk 00:00:20]} {[%emt 00:00:37]} fxg6 {[%clk 00:01:37]}
{[%emt 00:00:04]} 37. fxe6 {[%clk 00:00:07]} {[%emt 00:00:17]} Rg5 {[%clk
00:01:35]} {[%emt 00:00:06]} 38. Rb4+ {[%clk 00:00:09]} {[%emt 00:00:04]} Ke5
{[%clk 00:00:47]} {[%emt 00:00:52]} 39. Rc4 {[%clk 00:00:12]} {[%emt 00:00:03]}
Rg2+ {[%clk 00:00:51]} {[%emt 00:00:01]} 40. Kc3 {[%clk 00:00:16]} {[%emt
00:00:01]} Be8 {[%clk 00:00:42]} {[%emt 00:00:17]} 41. e7 {[%clk 00:00:12]}
{[%emt 00:00:07]} Rd7 {[%clk 00:00:43]} {[%emt 00:00:03]} 42. Rh3 {[%clk
00:00:15]} {[%emt 00:00:02]} g5 {[%clk 00:00:47]} {[%emt 00:00:02]} 43. Rc5+
{[%clk 00:00:18]} {[%emt 00:00:02]} Kf4 {[%clk 00:00:45]} {[%emt 00:00:06]} 44.
Rf5+ {[%clk 00:00:10]} {[%emt 00:00:13]} Kg4 {[%clk 00:00:49]} {[%emt
00:00:09]} 45. Bf1 {[%clk 00:00:08]} {[%emt 00:00:02]} Rc7+ {[%clk 00:00:48]}
{[%emt 00:00:04]} 46. Kb3 {[%clk 00:00:08]} {[%emt 00:00:13]} Kxh3 {[%clk
00:00:45]} {[%emt 00:00:16]} 47. Rf3 {[%clk 00:00:11]} {[%emt 00:00:02]} Kxh2
{[%clk 00:00:47]} {[%emt 00:00:02]} 0-1

[Event "The Kvibergspelen 2023"]
[Site "Kviberg Park Hotel & Conference, Krutvagen 2, Gothenburg, Sweden"]
[Date "2023.09.15"]
[Round "4.9"]
[White "Reimanis, Ritvars"]
[Black "Zachrisson, Mattias"]
[Result "1-0"]
[TimeControl "15 minutes + 5 seconds per move from move one (Round 1 - 4) / 90 minutes + 30 seconds per move from move one (Round 5 - 8)"]
[WhiteTitle "IM"]
[WhiteFideId "11602988"]
[BlackFideId "1708384"]
[WhiteElo "2361"]
[BlackElo "2104"]

1. d4 {[%clk 00:15:07]} {[%emt 00:00:03]} Nf6 {[%clk 00:15:09]} {[%emt
00:00:01]} 2. Nf3 {[%clk 00:15:10]} {[%emt 00:00:01]} g6 {[%clk 00:15:13]}
{[%emt 00:00:02]} 3. c4 {[%clk 00:15:12]} {[%emt 00:00:03]} Bg7 {[%clk
00:15:17]} {[%emt 00:00:01]} 4. Nc3 {[%clk 00:15:16]} {[%emt 00:00:01]} O-O
{[%clk 00:15:18]} {[%emt 00:00:03]} 5. e4 {[%clk 00:15:20]} {[%emt 00:00:02]}
d6 {[%clk 00:15:22]} {[%emt 00:00:02]} 6. Be2 {[%clk 00:15:23]} e5 {[%clk
00:15:21]} {[%emt 00:00:05]} 7. O-O {[%clk 00:15:26]} {[%emt 00:00:02]} Nbd7
{[%clk 00:15:20]} {[%emt 00:00:07]} 8. Be3 {[%clk 00:15:26]} {[%emt 00:00:05]}
Ng4 {[%clk 00:13:44]} {[%emt 00:01:41]} 9. Bg5 {[%clk 00:15:29]} {[%emt
00:00:02]} f6 {[%clk 00:13:38]} {[%emt 00:00:11]} 10. Bh4 {[%clk 00:15:33]} c6
{[%clk 00:12:59]} {[%emt 00:00:45]} 11. dxe5 {[%clk 00:14:23]} {[%emt
00:01:15]} dxe5 {[%clk 00:12:53]} {[%emt 00:00:10]} 12. Qd6 {[%clk 00:14:16]}
{[%emt 00:00:12]} Nh6 {[%clk 00:10:52]} {[%emt 00:02:06]} 13. Rfd1 {[%clk
00:13:15]} {[%emt 00:01:05]} Nf7 {[%clk 00:10:28]} {[%emt 00:00:30]} 14. Qa3
{[%clk 00:12:53]} {[%emt 00:00:27]} h5 {[%clk 00:09:47]} {[%emt 00:00:47]} 15.
h3 {[%clk 00:12:30]} {[%emt 00:00:27]} g5 {[%clk 00:09:18]} {[%emt 00:00:34]}
16. Bg3 {[%clk 00:12:34]} {[%emt 00:00:01]} h4 {[%clk 00:09:22]} 17. Bh2 {[%clk
00:12:38]} Re8 {[%clk 00:09:27]} 18. c5 {[%clk 00:11:35]} {[%emt 00:01:08]} Bf8
{[%clk 00:09:21]} {[%emt 00:00:10]} 19. b4 {[%clk 00:11:39]} {[%emt 00:00:02]}
b6 {[%clk 00:08:59]} {[%emt 00:00:27]} 20. cxb6 {[%clk 00:10:54]} {[%emt
00:00:50]} Qxb6 {[%clk 00:09:01]} {[%emt 00:00:03]} 21. Rab1 {[%clk 00:10:58]}
a5 {[%clk 00:08:17]} {[%emt 00:00:49]} 22. Qa4 {[%clk 00:09:58]} {[%emt
00:01:05]} Nd8 {[%clk 00:04:35]} {[%emt 00:03:48]} 23. b5 {[%clk 00:09:11]}
{[%emt 00:00:52]} Nc5 {[%clk 00:04:14]} {[%emt 00:00:27]} 24. Qc2 {[%clk
00:09:14]} Bd7 {[%clk 00:03:03]} {[%emt 00:01:16]} 25. bxc6 {[%clk 00:08:40]}
{[%emt 00:00:39]} Qxc6 {[%clk 00:03:07]} {[%emt 00:00:02]} 26. Bc4+ {[%clk
00:08:24]} {[%emt 00:00:20]} Kg7 {[%clk 00:02:50]} {[%emt 00:00:22]} 27. Bd5
{[%clk 00:08:25]} {[%emt 00:00:04]} Qa6 {[%clk 00:02:48]} {[%emt 00:00:05]} 28.
Bxa8 {[%clk 00:08:17]} {[%emt 00:00:15]} Qxa8 {[%clk 00:02:52]} 29. Rd2 {[%clk
00:06:59]} {[%emt 00:01:22]} Nde6 {[%clk 00:02:47]} {[%emt 00:00:11]} 30. Nd5
{[%clk 00:06:46]} {[%emt 00:00:19]} Ba4 {[%clk 00:01:54]} {[%emt 00:00:58]} 31.
Qc4 {[%clk 00:06:40]} {[%emt 00:00:10]} Rc8 {[%clk 00:01:30]} {[%emt 00:00:29]}
32. Nb6 {[%clk 00:05:17]} {[%emt 00:01:28]} Nxe4 {[%clk 00:00:49]} {[%emt
00:00:46]} 33. Qxc8 {[%clk 00:03:52]} {[%emt 00:01:30]} Qxc8 {[%clk 00:00:48]}
{[%emt 00:00:06]} 34. Nxc8 {[%clk 00:03:56]} {[%emt 00:00:02]} Nxd2 {[%clk
00:00:50]} {[%emt 00:00:02]} 35. Nxd2 {[%clk 00:03:45]} {[%emt 00:00:16]} Nd4
{[%clk 00:00:30]} {[%emt 00:00:25]} 36. Rb7+ {[%clk 00:02:06]} {[%emt
00:01:44]} Kg6 {[%clk 00:00:25]} {[%emt 00:00:11]} 37. Nb3 {[%clk 00:02:05]}
{[%emt 00:00:05]} Ne2+ {[%clk 00:00:10]} {[%emt 00:00:20]} 38. Kf1 {[%clk
00:01:58]} {[%emt 00:00:13]} Nc3 {[%clk 00:00:14]} 39. Ne7+ {[%clk 00:01:34]}
{[%emt 00:00:29]} Kh5 {[%clk 00:00:18]} 40. Nc5 {[%clk 00:01:20]} {[%emt
00:00:19]} Bb5+ {[%clk 00:00:21]} {[%emt 00:00:02]} 41. Ke1 {[%clk 00:01:19]}
{[%emt 00:00:06]} Bc4 {[%clk 00:00:16]} {[%emt 00:00:10]} 42. a3 {[%clk
00:01:19]} {[%emt 00:00:06]} Nb5 {[%clk 00:00:17]} {[%emt 00:00:03]} 43. Ne4
{[%clk 00:01:08]} {[%emt 00:00:16]} Bg7 {[%clk 00:00:06]} {[%emt 00:00:16]} 44.
Nf5 {[%clk 00:00:46]} {[%emt 00:00:34]} 1-0

[Event "The Kvibergspelen 2023"]
[Site "Kviberg Park Hotel & Conference, Krutvagen 2, Gothenburg, Sweden"]
[Date "2023.09.15"]
[Round "4.10"]
[White "Hamark, Jesper"]
[Black "Mashhadi, Peyman"]
[Result "1/2-1/2"]
[TimeControl "15 minutes + 5 seconds per move from move one (Round 1 - 4) / 90 minutes + 30 seconds per move from move one (Round 5 - 8)"]
[WhiteFideId "1704338"]
[BlackFideId "1768581"]
[WhiteElo "2342"]
[BlackElo "2112"]

1. e4 {[%clk 00:14:58]} {[%emt 00:00:12]} e6 {[%clk 00:15:07]} {[%emt
00:00:04]} 2. d4 {[%clk 00:15:02]} {[%emt 00:00:01]} d5 {[%clk 00:15:10]}
{[%emt 00:00:02]} 3. e5 {[%clk 00:15:05]} {[%emt 00:00:01]} c5 {[%clk
00:15:12]} {[%emt 00:00:03]} 4. c3 {[%clk 00:15:08]} {[%emt 00:00:03]} Nc6
{[%clk 00:15:14]} {[%emt 00:00:02]} 5. Nf3 {[%clk 00:15:11]} {[%emt 00:00:03]}
Qb6 {[%clk 00:14:56]} {[%emt 00:00:22]} 6. Bd3 {[%clk 00:15:12]} {[%emt
00:00:05]} Bd7 {[%clk 00:14:49]} {[%emt 00:00:12]} 7. dxc5 {[%clk 00:15:14]}
{[%emt 00:00:02]} Bxc5 {[%clk 00:14:30]} {[%emt 00:00:25]} 8. O-O {[%clk
00:15:17]} {[%emt 00:00:02]} a5 {[%clk 00:13:45]} {[%emt 00:00:50]} 9. Qe2
{[%clk 00:15:18]} {[%emt 00:00:03]} Nge7 {[%clk 00:13:20]} {[%emt 00:00:31]} 10.
Nbd2 {[%clk 00:15:19]} {[%emt 00:00:03]} a4 {[%clk 00:12:49]} {[%emt 00:00:36]}
11. b4 {[%clk 00:15:10]} {[%emt 00:00:14]} axb3 {[%clk 00:12:30]} {[%emt
00:00:25]} 12. Nxb3 {[%clk 00:15:13]} {[%emt 00:00:01]} Ng6 {[%clk 00:12:05]}
{[%emt 00:00:30]} 13. h4 {[%clk 00:13:46]} {[%emt 00:01:32]} f6 {[%clk
00:10:39]} {[%emt 00:01:32]} 14. exf6 {[%clk 00:11:56]} {[%emt 00:01:55]} gxf6
{[%clk 00:10:38]} {[%emt 00:00:05]} 15. c4 {[%clk 00:10:25]} {[%emt 00:01:37]}
Nb4 {[%clk 00:08:54]} {[%emt 00:01:49]} 16. h5 {[%clk 00:06:32]} {[%emt
00:03:57]} Nxd3 {[%clk 00:07:12]} {[%emt 00:01:48]} 17. Qxd3 {[%clk 00:04:08]}
{[%emt 00:02:29]} Ne7 {[%clk 00:06:14]} {[%emt 00:01:03]} 18. Bb2 {[%clk
00:04:11]} {[%emt 00:00:02]} Kf7 {[%clk 00:04:50]} {[%emt 00:01:29]} 19. Qc3
{[%clk 00:04:10]} {[%emt 00:00:05]} e5 {[%clk 00:03:51]} {[%emt 00:01:04]} 20.
cxd5 {[%clk 00:03:54]} {[%emt 00:00:21]} Bb4 {[%clk 00:03:39]} {[%emt
00:00:18]} 21. Qc1 {[%clk 00:02:00]} {[%emt 00:01:59]} Rhg8 {[%clk 00:02:18]}
{[%emt 00:01:26]} 22. Qh6 {[%clk 00:01:21]} {[%emt 00:00:43]} Nf5 {[%clk
00:02:18]} {[%emt 00:00:06]} 23. Nxe5+ {[%clk 00:01:08]} {[%emt 00:00:18]} Ke7
{[%clk 00:02:17]} {[%emt 00:00:06]} 24. Qxh7+ {[%clk 00:00:19]} {[%emt
00:00:53]} Rg7 {[%clk 00:02:15]} {[%emt 00:00:08]} 25. Nxd7 {[%clk 00:00:22]}
{[%emt 00:00:01]} Rxh7 {[%clk 00:01:39]} {[%emt 00:00:41]} 26. Nxb6 {[%clk
00:00:26]} {[%emt 00:00:02]} Rg8 {[%clk 00:01:16]} {[%emt 00:00:27]} 27. d6+
{[%clk 00:00:11]} {[%emt 00:00:21]} Kf7 {[%clk 00:01:10]} {[%emt 00:00:10]} 28.
g3 {[%clk 00:00:07]} {[%emt 00:00:10]} Rxh5 {[%clk 00:01:12]} {[%emt 00:00:03]}
29. Kg2 {[%clk 00:00:06]} {[%emt 00:00:05]} Nh4+ {[%clk 00:01:16]} {[%emt
00:00:01]} 30. Kg1 {[%clk 00:00:10]} {[%emt 00:00:01]} Nf3+ {[%clk 00:01:11]}
{[%emt 00:00:10]} 31. Kg2 {[%clk 00:00:14]} {[%emt 00:00:02]} Nh4+ {[%clk
00:01:13]} {[%emt 00:00:02]} 32. Kg1 {[%clk 00:00:18]} {[%emt 00:00:01]} Nf3+
{[%clk 00:01:14]} {[%emt 00:00:05]} 33. Kg2 {[%clk 00:00:21]} {[%emt 00:00:02]}
Nh4+ {[%clk 00:01:18]} {[%emt 00:00:01]} 34. Kg1 {[%clk 00:00:17]} {[%emt
00:00:09]} 1/2-1/2

[Event "The Kvibergspelen 2023"]
[Site "Kviberg Park Hotel & Conference, Krutvagen 2, Gothenburg, Sweden"]
[Date "2023.09.15"]
[Round "4.11"]
[White "Jarlskov, Daniel Tuk Hartso"]
[Black "Pedersen, Daniel Vesterbaek"]
[Result "1/2-1/2"]
[TimeControl "15 minutes + 5 seconds per move from move one (Round 1 - 4) / 90 minutes + 30 seconds per move from move one (Round 5 - 8)"]
[BlackTitle "FM"]
[WhiteFideId "1463896"]
[BlackFideId "1402161"]
[WhiteElo "2038"]
[BlackElo "2163"]

1. d4 {[%clk 00:15:07]} {[%emt 00:00:02]} Nf6 {[%clk 00:15:04]} {[%emt
00:00:06]} 2. c4 {[%clk 00:15:10]} {[%emt 00:00:02]} e6 {[%clk 00:15:06]}
{[%emt 00:00:04]} 3. Nf3 {[%clk 00:15:13]} {[%emt 00:00:02]} d5 {[%clk
00:15:00]} {[%emt 00:00:11]} 4. g3 {[%clk 00:15:17]} {[%emt 00:00:02]} Be7
{[%clk 00:14:55]} {[%emt 00:00:10]} 5. Bg2 {[%clk 00:15:20]} {[%emt 00:00:01]}
O-O {[%clk 00:14:57]} {[%emt 00:00:03]} 6. O-O {[%clk 00:15:23]} {[%emt
00:00:02]} dxc4 {[%clk 00:15:00]} {[%emt 00:00:03]} 7. Ne5 {[%clk 00:15:19]}
{[%emt 00:00:08]} Nc6 {[%clk 00:14:58]} {[%emt 00:00:07]} 8. Bxc6 {[%clk
00:15:17]} {[%emt 00:00:06]} bxc6 {[%clk 00:15:01]} {[%emt 00:00:04]} 9. Nxc6
{[%clk 00:15:20]} {[%emt 00:00:01]} Qe8 {[%clk 00:15:04]} {[%emt 00:00:01]} 10.
Nxe7+ {[%clk 00:15:22]} {[%emt 00:00:03]} Qxe7 {[%clk 00:15:08]} {[%emt
00:00:02]} 11. Qa4 {[%clk 00:15:26]} {[%emt 00:00:01]} e5 {[%clk 00:12:43]}
{[%emt 00:02:31]} 12. dxe5 {[%clk 00:15:29]} {[%emt 00:00:01]} Qxe5 {[%clk
00:12:46]} {[%emt 00:00:02]} 13. Qxc4 {[%clk 00:15:33]} {[%emt 00:00:01]} Ne4
{[%clk 00:08:51]} {[%emt 00:04:00]} 14. Nc3 {[%clk 00:14:17]} {[%emt 00:01:20]}
Nxc3 {[%clk 00:08:21]} {[%emt 00:00:36]} 15. Qxc3 {[%clk 00:14:20]} {[%emt
00:00:02]} Qxe2 {[%clk 00:07:29]} {[%emt 00:00:57]} 16. Re1 {[%clk 00:14:15]}
{[%emt 00:00:09]} Qh5 {[%clk 00:06:01]} {[%emt 00:01:33]} 17. Bf4 {[%clk
00:08:56]} {[%emt 00:05:25]} Bb7 {[%clk 00:05:12]} {[%emt 00:00:55]} 18. Rad1
{[%clk 00:08:30]} {[%emt 00:00:31]} Rae8 {[%clk 00:04:36]} {[%emt 00:00:40]}
1/2-1/2

[Event "The Kvibergspelen 2023"]
[Site "Kviberg Park Hotel & Conference, Krutvagen 2, Gothenburg, Sweden"]
[Date "2023.09.15"]
[Round "4.12"]
[White "Hansen, Sune Berg"]
[Black "Frank, Anton"]
[Result "1/2-1/2"]
[TimeControl "15 minutes + 5 seconds per move from move one (Round 1 - 4) / 90 minutes + 30 seconds per move from move one (Round 5 - 8)"]
[WhiteTitle "GM"]
[WhiteFideId "1400266"]
[BlackFideId "1752383"]
[WhiteElo "2512"]
[BlackElo "2018"]

1. Nf3 {[%clk 00:15:09]} c5 {[%clk 00:15:03]} {[%emt 00:00:08]} 2. c4 {[%clk
00:15:08]} {[%emt 00:00:06]} Nc6 {[%clk 00:15:05]} {[%emt 00:00:02]} 3. d4
{[%clk 00:15:10]} {[%emt 00:00:03]} cxd4 {[%clk 00:15:08]} {[%emt 00:00:02]} 4.
Nxd4 {[%clk 00:15:13]} {[%emt 00:00:02]} Nf6 {[%clk 00:15:00]} {[%emt
00:00:13]} 5. Nc3 {[%clk 00:15:16]} {[%emt 00:00:03]} e6 {[%clk 00:15:03]}
{[%emt 00:00:02]} 6. a3 {[%clk 00:15:17]} {[%emt 00:00:04]} Bc5 {[%clk
00:10:59]} {[%emt 00:04:08]} 7. Nb3 {[%clk 00:14:56]} {[%emt 00:00:26]} Bb6
{[%clk 00:10:38]} {[%emt 00:00:27]} 8. Bf4 {[%clk 00:12:49]} {[%emt 00:02:11]}
e5 {[%clk 00:08:23]} {[%emt 00:02:21]} 9. Bg3 {[%clk 00:12:44]} {[%emt
00:00:10]} d6 {[%clk 00:07:14]} {[%emt 00:01:13]} 10. e3 {[%clk 00:12:44]}
{[%emt 00:00:05]} Be6 {[%clk 00:05:47]} {[%emt 00:01:32]} 11. Bh4 {[%clk
00:11:48]} {[%emt 00:01:01]} h6 {[%clk 00:05:43]} {[%emt 00:00:10]} 12. Nd2
{[%clk 00:07:33]} {[%emt 00:04:19]} g5 {[%clk 00:04:35]} {[%emt 00:01:13]} 13.
Bg3 {[%clk 00:07:37]} {[%emt 00:00:02]} h5 {[%clk 00:03:48]} {[%emt 00:00:51]}
14. h4 {[%clk 00:06:54]} {[%emt 00:00:49]} g4 {[%clk 00:03:52]} {[%emt
00:00:01]} 15. Be2 {[%clk 00:05:49]} {[%emt 00:01:09]} Ne7 {[%clk 00:03:37]}
{[%emt 00:00:21]} 16. Bd3 {[%clk 00:04:23]} {[%emt 00:01:31]} Nf5 {[%clk
00:02:34]} {[%emt 00:01:07]} 17. Bxf5 Bxf5 {[%clk 00:02:39]} 18. Qe2 {[%clk
00:03:44]} {[%emt 00:00:46]} Qe7 {[%clk 00:00:40]} {[%emt 00:02:03]} 19. Rd1
{[%clk 00:03:12]} {[%emt 00:00:38]} Rc8 {[%clk 00:00:29]} {[%emt 00:00:16]} 20.
b3 {[%clk 00:01:24]} {[%emt 00:01:52]} Bc2 {[%clk 00:00:16]} {[%emt 00:00:18]}
21. Rc1 {[%clk 00:01:26]} {[%emt 00:00:04]} Bf5 {[%clk 00:00:20]} {[%emt
00:00:02]} 22. e4 {[%clk 00:01:16]} {[%emt 00:00:14]} Be6 {[%clk 00:00:24]}
{[%emt 00:00:01]} 23. f3 {[%clk 00:01:20]} {[%emt 00:00:01]} Bd4 {[%clk
00:00:15]} {[%emt 00:00:14]} 24. Bf2 {[%clk 00:01:17]} {[%emt 00:00:08]} Bxf2+
{[%clk 00:00:12]} {[%emt 00:00:08]} 25. Qxf2 {[%clk 00:01:20]} {[%emt
00:00:02]} a6 {[%clk 00:00:14]} {[%emt 00:00:02]} 26. a4 {[%clk 00:01:10]}
{[%emt 00:00:16]} Nd7 {[%clk 00:00:13]} {[%emt 00:00:05]} 27. Qe3 {[%clk
00:01:09]} {[%emt 00:00:07]} Nc5 {[%clk 00:00:11]} {[%emt 00:00:07]} 28. a5
{[%clk 00:01:05]} {[%emt 00:00:09]} f5 {[%clk 00:00:09]} {[%emt 00:00:07]} 29.
exf5 Bxf5 {[%clk 00:00:13]} 30. O-O {[%clk 00:01:00]} {[%emt 00:00:06]} g3
{[%clk 00:00:12]} {[%emt 00:00:06]} 31. Qg5 {[%clk 00:00:48]} {[%emt 00:00:17]}
Qxg5 {[%clk 00:00:14]} {[%emt 00:00:03]} 32. hxg5 {[%clk 00:00:51]} {[%emt
00:00:02]} Kf7 {[%clk 00:00:13]} {[%emt 00:00:06]} 33. f4 {[%clk 00:00:34]}
{[%emt 00:00:22]} e4 {[%clk 00:00:16]} {[%emt 00:00:01]} 34. Rce1 {[%clk
00:00:26]} {[%emt 00:00:14]} Rhe8 {[%clk 00:00:20]} {[%emt 00:00:01]} 35. Nd5
{[%clk 00:00:15]} {[%emt 00:00:15]} Re6 {[%clk 00:00:12]} {[%emt 00:00:12]} 36.
Re3 {[%clk 00:00:15]} {[%emt 00:00:06]} Rce8 {[%clk 00:00:08]} {[%emt
00:00:09]} 37. Nc7 {[%clk 00:00:17]} {[%emt 00:00:02]} R8e7 {[%clk 00:00:10]}
{[%emt 00:00:06]} 38. Nxe6 {[%clk 00:00:21]} {[%emt 00:00:01]} Rxe6 {[%clk
00:00:15]} 39. Rc1 {[%clk 00:00:19]} {[%emt 00:00:04]} h4 {[%clk 00:00:18]}
{[%emt 00:00:02]} 40. Rcc3 {[%clk 00:00:23]} {[%emt 00:00:01]} Kg6 {[%clk
00:00:16]} {[%emt 00:00:07]} 41. Kf1 {[%clk 00:00:21]} {[%emt 00:00:06]} Nd3
{[%clk 00:00:15]} {[%emt 00:00:06]} 42. b4 {[%clk 00:00:13]} {[%emt 00:00:18]}
Nxb4 {[%clk 00:00:13]} {[%emt 00:00:06]} 43. c5 {[%clk 00:00:15]} {[%emt
00:00:10]} d5 {[%clk 00:00:15]} {[%emt 00:00:01]} 44. Rb3 {[%clk 00:00:18]}
{[%emt 00:00:01]} Nc2 {[%clk 00:00:17]} {[%emt 00:00:01]} 45. Rec3 {[%clk
00:00:20]} {[%emt 00:00:14]} e3 {[%clk 00:00:17]} {[%emt 00:00:04]} 46. Rxe3
{[%clk 00:00:15]} {[%emt 00:00:14]} Nxe3+ {[%clk 00:00:20]} 47. Kg1 {[%clk
00:00:19]} Nc4 {[%clk 00:00:20]} {[%emt 00:00:11]} 48. Nf3 {[%clk 00:00:23]}
{[%emt 00:00:01]} Bg4 {[%clk 00:00:22]} {[%emt 00:00:14]} 49. Nxh4+ {[%clk
00:00:21]} {[%emt 00:00:04]} Kh5 {[%clk 00:00:26]} 50. Nf3 {[%clk 00:00:25]}
{[%emt 00:00:06]} Bxf3 {[%clk 00:00:29]} {[%emt 00:00:01]} 51. gxf3 {[%clk
00:00:29]} Re7 {[%clk 00:00:14]} {[%emt 00:00:27]} 52. Kg2 {[%clk 00:00:31]}
{[%emt 00:00:02]} Kh4 {[%clk 00:00:17]} {[%emt 00:00:09]} 53. g6 {[%clk
00:00:26]} {[%emt 00:00:14]} Re2+ {[%clk 00:00:20]} {[%emt 00:00:01]} 54. Kg1
{[%clk 00:00:30]} Re7 {[%clk 00:00:09]} {[%emt 00:00:15]} 55. Rd3 {[%clk
00:00:30]} {[%emt 00:00:01]} Nxa5 {[%clk 00:00:10]} {[%emt 00:00:01]} 56. Rxd5
{[%clk 00:00:34]} Re1+ {[%clk 00:00:11]} {[%emt 00:00:10]} 57. Kg2 {[%clk
00:00:38]} Re2+ {[%clk 00:00:16]} 58. Kg1 {[%clk 00:00:42]} Re1+ {[%clk
00:00:19]} 59. Kg2 {[%clk 00:00:46]} Re2+ {[%clk 00:00:22]} 60. Kg1 {[%clk
00:00:50]} 1/2-1/2